[Event "RUS-chT Women Rapid 2019"]
[Site "Sochi"]
[Date "2019.10.19"]
[Round "6.8"]
[White "Vasilevich, Tatjana"]
[Black "Styazhkina, Anna"]
[Result "1-0"]
[ECO "D11"]
[WhiteElo "2360"]
[BlackElo "2280"]
[Annotator "NA"]
[PlyCount "105"]
[EventDate "2019.10.18"]
[EventType "swiss"]
[EventCountry "RUS"]
[SourceTitle "playchess.com"]
[Source "ChessBase"]
[SourceQuality "1"]
[TimeControl "900+10"]

1. d4 {[%emt 0:00:00]} d5 {[%emt 0:00:00]} 2. c4 {[%emt 0:00:00]} c6 {[%emt 0:00:00]} 3. Nf3 {[%emt 0:00:00]} Nf6 {[%emt 0:00:00]} 4. e3 {[%emt 0:00:00]} a6 {[%emt 0:00:00]} 5. Nc3 {[%emt 0:00:00]} Bf5 {[%emt 0:00:00]} 6. Be2 {[%emt 0:00:00]} h6 {[%emt 0:00:02]} 7. O-O {[%emt 0:00:01]} e6 {[%emt 0:00:02]} 8. b3 {[%emt 0:00:08]} Bb4 {[%emt 0:00:07]} 9. Bb2 {[%emt 0:00:02]} O-O {[%emt 0:00:05]} 10. a3 {[%emt 0:00:13]} Bd6 {[%emt 0:00:05]} 11. c5 {[%emt 0:00:38]} Bc7 {[%emt 0:00:04]} 12. b4 {[%emt 0:00:02]} Nbd7 {[%emt 0:00:18]} 13. a4 {[%emt 0:00:18]} e5 {[%emt 0:02:04]} 14. dxe5 {[%emt 0:04:03]} Nxe5 {[%emt 0:00:02]} 15. Qb3 {[%emt 0:03:12]} Nfg4 {[%emt 0:03:46]} 16. Nxe5 {[%emt 0:04:00]} Nxe5 {[%emt 0:00:13]} 17. Rfd1 {[%emt 0:00:59]} Qh4 {[%emt 0:00:27]} 18. f4 {[%emt 0:01:36]} Nd7 {[%emt 0:01:30]} 19. Bf3 {[%emt 0:01:41]} Rfe8 {[%emt 0:00:25]} 20. Ne2 {[%emt 0:00:09]} Qe7 {[%emt 0:00:21]} 21. Ng3 {[%emt 0:00:27]} Bh7 {[%emt 0:00:21]} 22. Bd4 {[%emt 0:00:18]} b6 {[%emt 0:03:23]} 23. Qc3 {[%emt 0:00:17]} bxc5 {[%emt 0:01:38]} 24. bxc5 {[%emt 0:00:07]} f6 {[%emt 0:00:36]} 25. Bg4 {[%emt 0:00:03]} Nf8 {[%emt 0:01:56]} 26. Nh5 {[%emt 0:00:31]} Bg6 {[%emt 0:00:59]} 27. Re1 {[%emt 0:00:27]} Nh7 {[%emt 0:00:45]} 28. Ng3 {[%emt 0:00:04]} Rab8 {[%emt 0:00:12]} 29. Rac1 {[%emt 0:00:18]} a5 {[%emt 0:00:11]} 30. Nf5 {[%emt 0:00:11]} Bxf5 {[%emt 0:00:14]} 31. Bxf5 {[%emt 0:00:01]} Rb4 {[%emt 0:00:10]} 32. Bc2 {[%emt 0:00:07]} Nf8 {[%emt 0:00:10]} 33. Qd3 {[%emt 0:00:09]} Reb8 {[%emt 0:00:09]} 34. g3 {[%emt 0:00:06]} Qd7 {[%emt 0:00:12]} 35. Kg2 {[%emt 0:00:10]} Re8 {[%emt 0:00:10]} 36. h3 {[%emt 0:00:06]} Kf7 {[%emt 0:00:07]} 37. Rb1 {[%emt 0:00:07]} Reb8 {[%emt 0:00:11]} 38. Bc3 {[%emt 0:00:13]} Rc4 {[%emt 0:00:09]} 39. Rxb8 {[%emt 0:00:12]} Bxb8 {[%emt 0:00:03]} 40. Bxa5 {[%emt 0:00:08]} Rxc5 {[%emt 0:00:05]} 41. Bb4 {[%emt 0:00:07]} Rc4 {[%emt 0:00:07]} 42. Bxf8 Kxf8 {[%emt 0:00:01]} 43. Qh7 {[%emt 0:00:26]} Qf7 {[%emt 0:00:20]} 44. Rb1 {[%emt 0:00:25]} Bd6 {[%emt 0:00:15]} 45. Qf5 {[%emt 0:00:06]} Qe8 {[%emt 0:00:20]} 46. Rb7 {[%emt 0:00:14]} Rb4 {[%emt 0:00:08]} 47. Ra7 {[%emt 0:00:14]} Bc5 {[%emt 0:00:13]} 48. Rc7 {[%emt 0:00:10]} Bb6 {[%emt 0:00:12]} 49. Rc8 {[%emt 0:00:08]} Bd8 {[%emt 0:00:04]} 50. Qh7 {[%emt 0:00:03]} Rb2 {[%emt 0:00:09]} 51. Kf3 {[%emt 0:00:03]} Qd7 {[%emt 0:00:06]} 52. Bf5 {[%emt 0:00:07]} Qd6 {[%emt 0:00:03]} 53. Qh8+ {[%emt 0:00:00]} 1-0

[Event "RUS-chT Women Rapid 2019"]
[Site "Sochi"]
[Date "2019.10.19"]
[Round "6.9"]
[White "Nasybullina, Alfia"]
[Black "Ambartsumova, Karina"]
[Result "1/2-1/2"]
[ECO "A41"]
[WhiteElo "2132"]
[BlackElo "2341"]
[Annotator "NA"]
[PlyCount "157"]
[EventDate "2019.10.18"]
[EventType "swiss"]
[EventCountry "RUS"]
[SourceTitle "playchess.com"]
[Source "ChessBase"]
[SourceQuality "1"]
[TimeControl "900+10"]

1. d4 {[%emt 0:00:00]} d6 {[%emt 0:00:00]} 2. e4 {[%emt 0:00:00]} Nf6 {[%emt 0:00:02]} 3. f3 {[%emt 0:00:09]} e5 {[%emt 0:00:30]} 4. dxe5 {[%emt 0:00:13]} dxe5 {[%emt 0:00:09]} 5. Qxd8+ {[%emt 0:00:02]} Kxd8 {[%emt 0:00:07]} 6. Bc4 {[%emt 0:00:02]} Ke8 {[%emt 0:01:49]} 7. Nc3 {[%emt 0:00:18]} c6 {[%emt 0:00:15]} 8. Be3 {[%emt 0:00:05]} Nbd7 {[%emt 0:00:40]} 9. Rd1 {[%emt 0:01:40]} b5 {[%emt 0:00:48]} 10. Bb3 {[%emt 0:00:18]} Bc5 {[%emt 0:03:08]} 11. Bc1 {[%emt 0:00:02]} a5 {[%emt 0:00:27]} 12. a4 {[%emt 0:00:06]} b4 {[%emt 0:00:09]} 13. Nce2 {[%emt 0:00:17]} Ba6 {[%emt 0:00:05]} 14. Nh3 {[%emt 0:00:04]} Ke7 {[%emt 0:00:41]} 15. Nf2 {[%emt 0:03:53]} Rhd8 {[%emt 0:00:22]} 16. g4 {[%emt 0:00:51]} Ne8 {[%emt 0:01:14]} 17. Nd3 {[%emt 0:00:38]} Bb6 {[%emt 0:00:12]} 18. f4 {[%emt 0:03:04]} Nef6 {[%emt 0:02:39]} 19. fxe5 {[%emt 0:03:17]} Nxg4 {[%emt 0:00:02]} 20. Bg5+ {[%emt 0:00:06]} f6 {[%emt 0:00:05]} 21. exf6+ {[%emt 0:00:02]} gxf6 {[%emt 0:00:02]} 22. Bf4 {[%emt 0:02:06]} Nde5 {[%emt 0:01:24]} 23. Ng3 {[%emt 0:00:54]} Bxd3 {[%emt 0:01:29]} 24. Nf5+ {[%emt 0:00:22]} Kf8 {[%emt 0:00:20]} 25. Bxe5 {[%emt 0:00:13]} Bf2+ {[%emt 0:00:36]} 26. Kd2 {[%emt 0:00:01]} Bxe4+ {[%emt 0:00:04]} 27. Bd6+ {[%emt 0:00:02]} Rxd6+ {[%emt 0:00:06]} 28. Nxd6 {[%emt 0:00:02]} Bxh1 {[%emt 0:00:03]} 29. Rxh1 {[%emt 0:00:02]} Rd8 {[%emt 0:00:02]} 30. h3 {[%emt 0:00:07]} Rxd6+ {[%emt 0:02:04]} 31. Ke2 {[%emt 0:00:01]} Ne5 {[%emt 0:00:04]} 32. Kxf2 {[%emt 0:00:02]} c5 {[%emt 0:00:02]} 33. Ba2 {[%emt 0:00:54]} Rd2+ {[%emt 0:00:05]} 34. Ke3 {[%emt 0:00:01]} Rxc2 {[%emt 0:00:02]} 35. Bd5 {[%emt 0:00:23]} Rxb2 {[%emt 0:00:28]} 36. Rg1 {[%emt 0:00:09]} c4 {[%emt 0:00:18]} 37. Kd4 {[%emt 0:00:19]} Rd2+ {[%emt 0:00:06]} 38. Kc5 {[%emt 0:00:02]} Ng6 {[%emt 0:00:27]} 39. Bxc4 {[%emt 0:00:07]} Rc2 {[%emt 0:00:10]} 40. Kb5 {[%emt 0:00:02]} Rc3 {[%emt 0:00:01]} 41. Be6 {[%emt 0:00:05]} Ke7 {[%emt 0:00:06]} 42. Re1 {[%emt 0:00:14]} Ne5 {[%emt 0:00:01]} 43. Bf5 {[%emt 0:00:01]} b3 {[%emt 0:00:07]} 44. Kxa5 {[%emt 0:00:02]} b2 {[%emt 0:00:02]} 45. Re2 {[%emt 0:00:54]} Rb3 {[%emt 0:00:10]} 46. Bb1 {[%emt 0:00:02]} Kd6 {[%emt 0:00:10]} 47. Ka6 {[%emt 0:00:12]} Nc4 {[%emt 0:00:27]} 48. Rf2 {[%emt 0:00:13]} Ke5 {[%emt 0:00:14]} 49. Rf5+ {[%emt 0:00:03]} Ke6 {[%emt 0:00:03]} 50. Rf1 {[%emt 0:00:05]} Nd2 {[%emt 0:00:20]} 51. Ba2 {[%emt 0:00:02]} Nxf1 {[%emt 0:00:06]} 52. Bxb3+ {[%emt 0:00:01]} Kd6 {[%emt 0:00:01]} 53. Bc2 {[%emt 0:00:05]} Nd2 {[%emt 0:00:33]} 54. Bxh7 {[%emt 0:00:28]} b1=Q {[%emt 0:00:04]} 55. Bxb1 {[%emt 0:00:02]} Nxb1 {[%emt 0:00:01]} 56. Kb7 {[%emt 0:00:28]} Nd2 {[%emt 0:00:14]} 57. h4 {[%emt 0:00:06]} f5 {[%emt 0:00:13]} 58. h5 {[%emt 0:00:02]} Ke6 {[%emt 0:00:05]} 59. Kc6 {[%emt 0:00:08]} Nb3 {[%emt 0:00:14]} 60. Kb5 {[%emt 0:00:04]} Kf6 {[%emt 0:00:11]} 61. Kc4 {[%emt 0:00:03]} Na5+ {[%emt 0:00:01]} 62. Kd4 {[%emt 0:00:07]} Kg5 {[%emt 0:00:27]} 63. Ke5 {[%emt 0:00:07]} Nc4+ {[%emt 0:00:01]} 64. Kd4 {[%emt 0:00:01]} Na5 {[%emt 0:00:15]} 65. Ke5 {[%emt 0:00:01]} Nc6+ {[%emt 0:00:01]} 66. Kd6 {[%emt 0:00:14]} Nd8 {[%emt 0:00:17]} 67. Ke5 {[%emt 0:00:18]} f4 {[%emt 0:00:03]} 68. Ke4 {[%emt 0:00:05]} Kg4 {[%emt 0:00:01]} 69. a5 {[%emt 0:00:14]} f3 {[%emt 0:00:02]} 70. Ke3 {[%emt 0:00:05]} Kg3 {[%emt 0:00:10]} 71. a6 {[%emt 0:00:02]} f2 {[%emt 0:00:01]} 72. a7 {[%emt 0:00:03]} f1=Q {[%emt 0:00:14]} 73. a8=Q {[%emt 0:00:04]} Qf4+ {[%emt 0:00:21]} 74. Kd3 {[%emt 0:00:45]} Qd6+ {[%emt 0:00:11]} 75. Ke3 {[%emt 0:00:15]} Qe5+ {[%emt 0:00:12]} 76. Qe4 {[%emt 0:00:08]} Qg5+ {[%emt 0:00:06]} 77. Kd3 {[%emt 0:00:18]} Qb5+ {[%emt 0:00:11]} 78. Kd2 {[%emt 0:00:12]} Nc6 {[%emt 0:00:30]} 79. Qd3+ {[%emt 0:00:08]} 1/2-1/2

[Event "RUS-chT Women Rapid 2019"]
[Site "Sochi"]
[Date "2019.10.19"]
[Round "6.10"]
[White "Shafigullina, Zarina"]
[Black "Mukhina, Jana"]
[Result "1-0"]
[ECO "E62"]
[WhiteElo "2295"]
[BlackElo "2105"]
[Annotator "NA"]
[PlyCount "91"]
[EventDate "2019.10.18"]
[EventType "swiss"]
[EventCountry "RUS"]
[SourceTitle "playchess.com"]
[Source "ChessBase"]
[SourceQuality "1"]
[TimeControl "900+10"]

1. d4 {[%emt 0:00:00]} Nf6 {[%emt 0:00:00]} 2. Nf3 {[%emt 0:00:00]} g6 {[%emt 0:00:00]} 3. g3 {[%emt 0:00:00]} Bg7 {[%emt 0:00:00]} 4. Bg2 {[%emt 0:00:00]} O-O {[%emt 0:00:00]} 5. c4 {[%emt 0:00:01]} d6 {[%emt 0:00:00]} 6. O-O {[%emt 0:00:03]} Nc6 {[%emt 0:00:00]} 7. Nc3 {[%emt 0:00:02]} e5 {[%emt 0:00:00]} 8. d5 {[%emt 0:00:53]} Ne7 {[%emt 0:00:00]} 9. e4 {[%emt 0:00:44]} a5 {[%emt 0:00:00]} 10. Ne1 {[%emt 0:00:15]} Nd7 {[%emt 0:00:06]} 11. Nd3 {[%emt 0:00:09]} b6 {[%emt 0:00:01]} 12. Re1 {[%emt 0:00:28]} Ba6 {[%emt 0:00:06]} 13. b3 {[%emt 0:00:04]} f5 {[%emt 0:00:02]} 14. Bb2 {[%emt 0:00:55]} Nc5 {[%emt 0:00:08]} 15. Nxc5 {[%emt 0:01:08]} bxc5 {[%emt 0:00:02]} 16. f3 {[%emt 0:00:01]} Kh8 {[%emt 0:06:43]} 17. Ne2 {[%emt 0:00:10]} fxe4 {[%emt 0:02:53]} 18. fxe4 {[%emt 0:00:05]} a4 {[%emt 0:00:54]} 19. Nc1 {[%emt 0:03:42]} Nc8 {[%emt 0:03:05]} 20. Nd3 {[%emt 0:01:23]} Nb6 {[%emt 0:00:07]} 21. Bc1 {[%emt 0:02:08]} Bc8 {[%emt 0:00:25]} 22. Bd2 {[%emt 0:00:11]} Bd7 {[%emt 0:00:05]} 23. Qc2 {[%emt 0:00:30]} axb3 {[%emt 0:00:27]} 24. axb3 {[%emt 0:00:02]} Qe7 {[%emt 0:00:25]} 25. Ba5 {[%emt 0:03:33]} Bh6 {[%emt 0:00:16]} 26. b4 {[%emt 0:02:07]} cxb4 {[%emt 0:00:41]} 27. Nxb4 {[%emt 0:00:02]} Qf6 {[%emt 0:00:13]} 28. Nd3 {[%emt 0:00:21]} Rab8 {[%emt 0:02:26]} 29. c5 {[%emt 0:00:00]} dxc5 {[%emt 0:00:01]} 30. Nxc5 {[%emt 0:00:01]} Bc8 {[%emt 0:00:30]} 31. Nd3 {[%emt 0:00:13]} Ba6 {[%emt 0:00:10]} 32. Nxe5 {[%emt 0:00:39]} Bg7 {[%emt 0:00:12]} 33. Bc3 {[%emt 0:00:27]} Rbe8 {[%emt 0:00:18]} 34. Rxa6 {[%emt 0:00:02]} Rxe5 {[%emt 0:00:07]} 35. Qb2 {[%emt 0:00:03]} Qd6 {[%emt 0:00:11]} 36. Bxe5 {[%emt 0:00:12]} Bxe5 {[%emt 0:00:01]} 37. Qa3 {[%emt 0:00:17]} Qd8 {[%emt 0:00:21]} 38. Rf1 {[%emt 0:00:14]} Bd4+ {[%emt 0:00:09]} 39. Kh1 {[%emt 0:00:00]} Rxf1+ {[%emt 0:00:09]} 40. Bxf1 {[%emt 0:00:01]} Qf6 {[%emt 0:00:01]} 41. Bg2 {[%emt 0:00:32]} Qf2 {[%emt 0:00:23]} 42. Qc1 {[%emt 0:00:01]} h5 {[%emt 0:00:07]} 43. Ra3 {[%emt 0:00:12]} Nc4 {[%emt 0:00:13]} 44. Rf3 {[%emt 0:00:02]} Qa2 {[%emt 0:00:11]} 45. Qh6+ {[%emt 0:00:02]} Kg8 {[%emt 0:00:01]} 46. Rf8# {[%emt 0:00:01]} 1-0

[Event "RUS-chT Women Rapid 2019"]
[Site "Sochi"]
[Date "2019.10.19"]
[Round "6.11"]
[White "Mironenko, Galina"]
[Black "Yakimova, Mariya"]
[Result "0-1"]
[ECO "B33"]
[WhiteElo "2236"]
[BlackElo "2276"]
[Annotator "NA"]
[PlyCount "128"]
[EventDate "2019.10.18"]
[EventType "swiss"]
[EventCountry "RUS"]
[SourceTitle "playchess.com"]
[Source "ChessBase"]
[SourceQuality "1"]
[TimeControl "900+10"]

1. e4 {[%emt 0:00:00]} c5 {[%emt 0:00:00]} 2. Nf3 {[%emt 0:00:00]} Nc6 {[%emt 0:00:00]} 3. d4 {[%emt 0:00:00]} cxd4 {[%emt 0:00:00]} 4. Nxd4 {[%emt 0:00:00]} Nf6 {[%emt 0:00:00]} 5. Nc3 {[%emt 0:00:00]} e5 {[%emt 0:00:00]} 6. Ndb5 {[%emt 0:00:02]} d6 {[%emt 0:00:00]} 7. Bg5 {[%emt 0:00:03]} a6 {[%emt 0:00:00]} 8. Na3 {[%emt 0:00:02]} b5 {[%emt 0:00:01]} 9. Nd5 {[%emt 0:00:06]} Be7 {[%emt 0:00:01]} 10. Bxf6 {[%emt 0:00:03]} Bxf6 {[%emt 0:00:02]} 11. c4 {[%emt 0:00:02]} b4 {[%emt 0:00:01]} 12. Nc2 {[%emt 0:00:02]} a5 {[%emt 0:00:02]} 13. g3 {[%emt 0:00:03]} O-O {[%emt 0:00:07]} 14. Bg2 {[%emt 0:00:02]} Bg5 {[%emt 0:00:03]} 15. O-O {[%emt 0:00:06]} Rb8 {[%emt 0:00:10]} 16. b3 {[%emt 0:00:20]} Bh6 {[%emt 0:00:51]} 17. Qd3 {[%emt 0:00:29]} Be6 {[%emt 0:00:09]} 18. Nde3 {[%emt 0:02:06]} Bxe3 {[%emt 0:01:45]} 19. Nxe3 {[%emt 0:02:57]} Qb6 {[%emt 0:03:17]} 20. Rad1 {[%emt 0:01:48]} Rfd8 {[%emt 0:00:14]} 21. Kh1 {[%emt 0:00:34]} a4 {[%emt 0:02:05]} 22. f4 {[%emt 0:01:29]} f6 {[%emt 0:00:01]} 23. Nd5 {[%emt 0:01:16]} Qc5 {[%emt 0:00:55]} 24. Nc7 {[%emt 0:02:04]} Bc8 {[%emt 0:01:46]} 25. Nb5 {[%emt 0:01:35]} Rb7 {[%emt 0:06:23]} 26. Qd5+ {[%emt 0:02:46]} Qxd5 {[%emt 0:00:32]} 27. Rxd5 {[%emt 0:00:13]} axb3 {[%emt 0:00:44]} 28. axb3 {[%emt 0:00:05]} Be6 {[%emt 0:00:14]} 29. Rd3 {[%emt 0:00:44]} Na7 {[%emt 0:00:13]} 30. Nxd6 {[%emt 0:00:36]} Rbd7 {[%emt 0:00:07]} 31. Rfd1 {[%emt 0:00:16]} Bg4 {[%emt 0:00:07]} 32. R1d2 {[%emt 0:00:08]} Nc6 {[%emt 0:00:04]} 33. h3 {[%emt 0:00:08]} Be6 {[%emt 0:00:07]} 34. f5 {[%emt 0:00:16]} Bf7 {[%emt 0:00:03]} 35. Bf1 {[%emt 0:00:12]} Ra8 {[%emt 0:00:32]} 36. Nb5 {[%emt 0:00:09]} Rxd3 {[%emt 0:00:07]} 37. Rxd3 {[%emt 0:00:06]} Kf8 {[%emt 0:00:06]} 38. Rd6 {[%emt 0:00:14]} Na5 {[%emt 0:00:01]} 39. Rd3 {[%emt 0:00:09]} Nb7 {[%emt 0:00:19]} 40. Kg1 {[%emt 0:00:15]} Nc5 {[%emt 0:00:02]} 41. Re3 {[%emt 0:00:07]} Ra1 {[%emt 0:00:12]} 42. Nd6 {[%emt 0:00:13]} Rb1 {[%emt 0:00:16]} 43. Nxf7 {[%emt 0:00:09]} Kxf7 {[%emt 0:00:01]} 44. Kf2 {[%emt 0:00:06]} Nxb3 {[%emt 0:00:02]} 45. Bd3 {[%emt 0:00:14]} Rc1 {[%emt 0:00:32]} 46. Re1 {[%emt 0:00:10]} Rc3 {[%emt 0:00:12]} 47. Rd1 {[%emt 0:00:08]} Nc5 {[%emt 0:00:06]} 48. Ke2 {[%emt 0:00:14]} b3 {[%emt 0:00:05]} 49. g4 {[%emt 0:00:09]} b2 {[%emt 0:00:13]} 50. Bb1 {[%emt 0:00:07]} Ke7 {[%emt 0:00:11]} 51. Kd2 {[%emt 0:00:12]} Rxc4 {[%emt 0:00:12]} 52. Re1 {[%emt 0:00:13]} Nb3+ {[%emt 0:00:02]} 53. Kd3 {[%emt 0:00:08]} Rc1 {[%emt 0:00:13]} 54. Ke2 {[%emt 0:00:03]} Nd4+ {[%emt 0:00:07]} 55. Kf2 {[%emt 0:00:19]} Kd6 {[%emt 0:00:06]} 56. h4 {[%emt 0:00:06]} h6 {[%emt 0:00:05]} 57. Rf1 {[%emt 0:00:14]} Kc5 {[%emt 0:00:05]} 58. Re1 {[%emt 0:00:09]} Kb4 {[%emt 0:00:07]} 59. g5 {[%emt 0:00:09]} hxg5 {[%emt 0:00:00]} 60. hxg5 {[%emt 0:00:03]} fxg5 {[%emt 0:00:08]} 61. Bd3 {[%emt 0:00:15]} g4 {[%emt 0:00:26]} 62. Kf1 {[%emt 0:00:05]} g3 {[%emt 0:00:00]} 63. Bb1 {[%emt 0:00:16]} g2+ {[%emt 0:00:00]} 64. Kf2 {[%emt 0:00:01]} Rxe1 {[%emt 0:00:01]} 0-1

[Event "RUS-chT Women Rapid 2019"]
[Site "Sochi"]
[Date "2019.10.19"]
[Round "6.12"]
[White "Markelova, Lubov"]
[Black "Filippova, Darya"]
[Result "0-1"]
[ECO "A17"]
[WhiteElo "2198"]
[BlackElo "2034"]
[Annotator "NA"]
[PlyCount "74"]
[EventDate "2019.10.18"]
[EventType "swiss"]
[EventCountry "RUS"]
[SourceTitle "playchess.com"]
[Source "ChessBase"]
[SourceQuality "1"]
[TimeControl "900+10"]

1. Nf3 {[%emt 0:00:00]} Nf6 {[%emt 0:00:03]} 2. c4 {[%emt 0:00:00]} e6 {[%emt 0:00:12]} 3. Nc3 {[%emt 0:01:25]} b6 {[%emt 0:00:16]} 4. g3 {[%emt 0:00:04]} Bb7 {[%emt 0:00:07]} 5. Bg2 {[%emt 0:00:02]} Be7 {[%emt 0:01:01]} 6. O-O {[%emt 0:00:02]} O-O {[%emt 0:01:16]} 7. Re1 {[%emt 0:00:02]} d5 {[%emt 0:00:58]} 8. cxd5 {[%emt 0:00:04]} exd5 {[%emt 0:00:37]} 9. d4 {[%emt 0:00:03]} c5 {[%emt 0:01:19]} 10. Bf4 {[%emt 0:00:17]} Nbd7 {[%emt 0:01:17]} 11. Rc1 {[%emt 0:01:39]} Rc8 {[%emt 0:00:22]} 12. dxc5 {[%emt 0:02:36]} bxc5 {[%emt 0:00:51]} 13. Qb3 {[%emt 0:01:32]} Qb6 {[%emt 0:00:27]} 14. Qxb6 {[%emt 0:01:18]} Nxb6 {[%emt 0:01:20]} 15. Nb5 {[%emt 0:01:00]} Ne4 {[%emt 0:01:55]} 16. Ne5 {[%emt 0:03:33]} a6 {[%emt 0:00:47]} 17. Na7 {[%emt 0:01:36]} Rce8 {[%emt 0:00:59]} 18. Nac6 {[%emt 0:00:50]} g5 {[%emt 0:00:30]} 19. Na5 {[%emt 0:01:04]} Ba8 {[%emt 0:00:26]} 20. Bxe4 {[%emt 0:00:18]} gxf4 {[%emt 0:00:13]} 21. Bf3 {[%emt 0:00:40]} fxg3 {[%emt 0:00:10]} 22. hxg3 {[%emt 0:00:02]} Bf6 {[%emt 0:00:13]} 23. Ng4 {[%emt 0:00:17]} Bxb2 {[%emt 0:00:11]} 24. Rxc5 {[%emt 0:00:07]} f5 {[%emt 0:00:17]} 25. Ne3 {[%emt 0:00:24]} Bd4 {[%emt 0:00:15]} 26. Rc7 {[%emt 0:00:02]} Be5 {[%emt 0:00:38]} 27. Rc2 {[%emt 0:00:15]} d4 {[%emt 0:00:11]} 28. Bxa8 {[%emt 0:00:07]} dxe3 {[%emt 0:00:05]} 29. Bf3 {[%emt 0:00:05]} Bd4 {[%emt 0:00:13]} 30. Kg2 {[%emt 0:00:05]} exf2 {[%emt 0:00:07]} 31. Rd1 {[%emt 0:00:17]} Be3 {[%emt 0:00:08]} 32. Rc6 {[%emt 0:00:10]} Rd8 {[%emt 0:00:07]} 33. Rh1 {[%emt 0:00:17]} Rf7 {[%emt 0:00:09]} 34. Nc4 {[%emt 0:00:11]} Nxc4 35. Rxc4 {[%emt 0:00:01]} Rfd7 {[%emt 0:00:08]} 36. Rch4 {[%emt 0:00:18]} Rd1 {[%emt 0:00:06]} 37. Rxh7 {[%emt 0:00:13]} Rg1+ {[%emt 0:00:01]} 0-1

[Event "RUS-chT Women Rapid 2019"]
[Site "Sochi"]
[Date "2019.10.19"]
[Round "7.1"]
[White "Ambartsumova, Karina"]
[Black "Pogonina, Natalija"]
[Result "1/2-1/2"]
[ECO "D35"]
[WhiteElo "2341"]
[BlackElo "2479"]
[Annotator "ChessBase"]
[PlyCount "49"]
[EventDate "2019.10.18"]
[EventType "swiss"]
[EventCountry "RUS"]
[SourceTitle "playchess.com"]
[Source "ChessBase"]
[SourceQuality "1"]
[TimeControl "900+10"]

1. c4 {[%emt 0:00:00]} e6 {[%emt 0:00:00]} 2. Nc3 {[%emt 0:00:04]} d5 {[%emt 0:00:00]} 3. d4 {[%emt 0:00:01]} Nf6 {[%emt 0:00:02]} 4. cxd5 {[%emt 0:00:15]} exd5 {[%emt 0:00:02]} 5. Bg5 {[%emt 0:00:02]} Be7 {[%emt 0:00:20]} 6. e3 {[%emt 0:00:10]} c6 {[%emt 0:00:06]} 7. Bd3 {[%emt 0:00:12]} Nbd7 {[%emt 0:00:02]} 8. h3 {[%emt 0:00:03]} Nf8 {[%emt 0:00:22]} 9. Bf4 {[%emt 0:00:21]} Ne6 {[%emt 0:01:43]} 10. Be5 {[%emt 0:00:08]} O-O {[%emt 0:01:10]} 11. Qc2 {[%emt 0:00:42]} g6 {[%emt 0:00:03]} 12. Nf3 {[%emt 0:00:03]} c5 {[%emt 0:04:33]} 13. dxc5 {[%emt 0:01:03]} Nxc5 {[%emt 0:00:09]} 14. Be2 {[%emt 0:01:30]} Bf5 {[%emt 0:00:32]} 15. Qd1 {[%emt 0:00:03]} Nce4 {[%emt 0:00:48]} 16. O-O {[%emt 0:00:36]} Nxc3 {[%emt 0:00:12]} 17. Bxc3 {[%emt 0:00:41]} Ne4 {[%emt 0:00:09]} 18. Be5 {[%emt 0:02:35]} Be6 {[%emt 0:00:20]} 19. Rc1 {[%emt 0:02:56]} Rc8 {[%emt 0:01:45]} 20. Nd4 {[%emt 0:00:36]} Qb6 {[%emt 0:00:27]} 21. Qb3 {[%emt 0:00:56]} Qxb3 {[%emt 0:01:11]} 22. Nxb3 {[%emt 0:00:02]} Rxc1 {[%emt 0:00:10]} 23. Rxc1 {[%emt 0:00:01]} Rc8 {[%emt 0:00:02]} 24. Rxc8+ {[%emt 0:01:23]} Bxc8 {[%emt 0:00:01]} 25. f3 {[%emt 0:01:29]} 1/2-1/2

[Event "RUS-chT Women Rapid 2019"]
[Site "Sochi"]
[Date "2019.10.19"]
[Round "7.2"]
[White "Girya, Olga"]
[Black "Shafigullina, Zarina"]
[Result "1-0"]
[ECO "E15"]
[WhiteElo "2476"]
[BlackElo "2295"]
[Annotator "ChessBase"]
[PlyCount "85"]
[EventDate "2019.10.18"]
[EventType "swiss"]
[EventCountry "RUS"]
[SourceTitle "playchess.com"]
[Source "ChessBase"]
[SourceQuality "1"]
[TimeControl "900+10"]

1. d4 {[%emt 0:00:00]} Nf6 {[%emt 0:00:00]} 2. c4 {[%emt 0:00:00]} e6 {[%emt 0:00:00]} 3. Nf3 {[%emt 0:00:00]} b6 {[%emt 0:00:00]} 4. g3 {[%emt 0:00:00]} Ba6 {[%emt 0:00:00]} 5. b3 {[%emt 0:00:00]} Bb4+ {[%emt 0:00:00]} 6. Bd2 {[%emt 0:00:00]} Be7 {[%emt 0:00:00]} 7. Nc3 {[%emt 0:00:00]} d5 {[%emt 0:00:13]} 8. cxd5 {[%emt 0:00:05]} exd5 {[%emt 0:00:02]} 9. Bg2 {[%emt 0:00:06]} O-O {[%emt 0:00:41]} 10. O-O {[%emt 0:00:11]} h6 {[%emt 0:00:03]} 11. Ne5 {[%emt 0:00:16]} c6 {[%emt 0:00:33]} 12. Qc2 {[%emt 0:00:19]} Nfd7 {[%emt 0:01:00]} 13. f4 {[%emt 0:01:13]} Nxe5 {[%emt 0:00:47]} 14. fxe5 {[%emt 0:00:09]} Nd7 {[%emt 0:02:14]} 15. Rf2 {[%emt 0:01:21]} Re8 {[%emt 0:00:13]} 16. Raf1 {[%emt 0:00:23]} f6 {[%emt 0:01:04]} 17. Bxh6 {[%emt 0:00:14]} Nf8 {[%emt 0:03:43]} 18. Bxg7 {[%emt 0:01:13]} Kxg7 {[%emt 0:00:34]} 19. exf6+ {[%emt 0:00:01]} Bxf6 {[%emt 0:00:01]} 20. Rxf6 {[%emt 0:00:06]} Qxf6 {[%emt 0:00:15]} 21. Rxf6 {[%emt 0:00:01]} Kxf6 {[%emt 0:00:01]} 22. g4 {[%emt 0:01:33]} Bc8 {[%emt 0:00:33]} 23. e4 {[%emt 0:08:12]} Bxg4 {[%emt 0:00:44]} 24. exd5 {[%emt 0:00:10]} Re1+ {[%emt 0:00:24]} 25. Kf2 {[%emt 0:00:01]} Rae8 {[%emt 0:00:01]} 26. Ne4+ {[%emt 0:00:15]} R8xe4 {[%emt 0:00:09]} 27. Bxe4 {[%emt 0:00:01]} Re2+ {[%emt 0:00:08]} 28. Qxe2 {[%emt 0:00:01]} Bxe2 {[%emt 0:00:01]} 29. Kxe2 {[%emt 0:00:03]} c5 {[%emt 0:02:38]} 30. dxc5 {[%emt 0:00:15]} bxc5 {[%emt 0:00:03]} 31. Kd3 {[%emt 0:00:04]} Ke5 {[%emt 0:00:08]} 32. Bg2 {[%emt 0:00:02]} Ng6 {[%emt 0:00:16]} 33. Kc4 {[%emt 0:00:13]} Kd6 {[%emt 0:00:01]} 34. Be4 {[%emt 0:00:15]} Nf4 {[%emt 0:00:02]} 35. h4 {[%emt 0:01:12]} Nh5 {[%emt 0:01:22]} 36. Bf3 {[%emt 0:00:19]} Ng3 {[%emt 0:00:02]} 37. h5 {[%emt 0:00:24]} Nf5 {[%emt 0:00:03]} 38. Be4 {[%emt 0:00:27]} Nh6 {[%emt 0:00:22]} 39. Kb5 {[%emt 0:00:12]} Ng4 {[%emt 0:00:02]} 40. Bf3 {[%emt 0:00:17]} Nf6 {[%emt 0:00:39]} 41. h6 {[%emt 0:00:08]} Nh7 {[%emt 0:00:12]} 42. Ka6 {[%emt 0:00:15]} Ng5 {[%emt 0:00:01]} 43. Kxa7 {[%emt 0:00:06] Kxd5} 1-0